[Event "94th FRA-ch 2019"]
[Site "Chartres"]
[Date "2019.08.17"]
[Round "1.3"]
[White "Favarel, Julien"]
[Black "Gharamian, Tigran"]
[Result "0-1"]
[ECO "A46"]
[WhiteElo "2333"]
[BlackElo "2586"]
[Annotator "ChessBase"]
[PlyCount "80"]
[EventDate "2019.08.17"]
[EventType "tourn"]
[EventCountry "FRA"]
[SourceTitle "playchess.com"]
[Source "ChessBase"]
[SourceQuality "1"]
[TimeControl "40/5400+30:1800+30"]

1. d4 {[%emt 0:00:00]} Nf6 {[%emt 0:00:00]} 2. Nf3 {[%emt 0:00:00]} b6 {[%emt 0:01:20]} 3. Bg5 {[%emt 0:00:59]} Bb7 {[%emt 0:05:38]} 4. Nbd2 {[%emt 0:05:56]} e6 {[%emt 0:05:58]} 5. e3 {[%emt 0:09:48]} h6 {[%emt 0:05:14]} 6. Bh4 {[%emt 0:00:34]} Be7 {[%emt 0:00:36]} 7. h3 {[%emt 0:07:13]} d5 {[%emt 0:04:49]} 8. c3 {[%emt 0:11:14]} Nbd7 {[%emt 0:02:35]} 9. Be2 {[%emt 0:09:47]} Bd6 {[%emt 0:15:40]} 10. Nf1 {[%emt 0:18:57]} c5 {[%emt 0:18:42]} 11. Bg3 {[%emt 0:01:58]} Bc7 {[%emt 0:00:15]} 12. Bxc7 {[%emt 0:04:25]} Qxc7 {[%emt 0:00:06]} 13. N1d2 {[%emt 0:00:41]} O-O {[%emt 0:00:55]} 14. O-O {[%emt 0:00:52]} e5 {[%emt 0:01:16]} 15. dxe5 {[%emt 0:04:58]} Nxe5 {[%emt 0:00:09]} 16. Nxe5 {[%emt 0:00:10]} Qxe5 {[%emt 0:00:06]} 17. Nf3 {[%emt 0:03:09]} Qc7 {[%emt 0:02:25]} 18. Rc1 {[%emt 0:08:54]} Rad8 {[%emt 0:01:11]} 19. b4 {[%emt 0:01:19]} Ne4 {[%emt 0:14:00]} 20. Qc2 {[%emt 0:05:43]} Rd6 {[%emt 0:04:52]} 21. bxc5 {[%emt 0:01:27]} bxc5 {[%emt 0:01:58]} 22. Nd2 {[%emt 0:01:06]} Nf6 {[%emt 0:04:00]} 23. Rb1 {[%emt 0:01:30]} Bc8 {[%emt 0:00:23]} 24. Qa4 {[%emt 0:00:46]} Bf5 {[%emt 0:01:24]} 25. Rb2 {[%emt 0:00:11]} Rb6 {[%emt 0:00:21]} 26. Qa3 {[%emt 0:00:37]} Rfb8 {[%emt 0:00:53]} 27. Rb3 {[%emt 0:00:30]} Bc2 {[%emt 0:04:15]} 28. Rxb6 {[%emt 0:00:01]} axb6 {[%emt 0:00:08]} 29. c4 {[%emt 0:01:03]} Bf5 {[%emt 0:02:52]} 30. cxd5 {[%emt 0:00:35]} Nxd5 {[%emt 0:00:05]} 31. e4 {[%emt 0:00:34]} Nf4 {[%emt 0:00:09]} 32. Bc4 {[%emt 0:00:09]} Be6 {[%emt 0:01:23]} 33. Bxe6 {[%emt 0:00:42]} Nxe6 {[%emt 0:00:01]} 34. Qb2 {[%emt 0:00:21]} Qf4 {[%emt 0:00:43]} 35. g3 {[%emt 0:00:29]} Qc7 {[%emt 0:00:06]} 36. a4 {[%emt 0:00:17]} Qd7 {[%emt 0:01:12]} 37. h4 {[%emt 0:01:03]} Qxa4 {[%emt 0:00:10]} 38. Ra1 {[%emt 0:00:23]} Qd4 {[%emt 0:00:44]} 39. Qxd4 {[%emt 0:00:38]} Nxd4 {[%emt 0:00:05]} 40. Rb1 {[%emt 0:00:19]} b5 {[%emt 0:00:19]} 0-1

[Event "94th FRA-ch 2019"]
[Site "Chartres"]
[Date "2019.08.17"]
[Round "1.5"]
[White "Maze, Sebastien"]
[Black "Moussard, Jules"]
[Result "0-1"]
[ECO "B48"]
[WhiteElo "2554"]
[BlackElo "2595"]
[Annotator "ChessBase"]
[PlyCount "52"]
[EventDate "2019.08.17"]
[EventType "tourn"]
[EventCountry "FRA"]
[SourceTitle "playchess.com"]
[Source "ChessBase"]
[SourceQuality "1"]
[TimeControl "40/5400+30:1800+30"]

1. e4 {[%emt 0:00:00]} c5 {[%emt 0:00:00]} 2. Nc3 {[%emt 0:00:07]} e6 {[%emt 0:00:46]} 3. Nge2 {[%emt 0:01:11]} Nc6 {[%emt 0:03:00]} 4. d4 {[%emt 0:01:00]} cxd4 {[%emt 0:00:06]} 5. Nxd4 {[%emt 0:00:03]} Qc7 {[%emt 0:01:21]} 6. Be3 {[%emt 0:03:51]} a6 {[%emt 0:00:51]} 7. Qf3 {[%emt 0:00:15]} Nf6 {[%emt 0:00:14]} 8. O-O-O {[%emt 0:05:05]} Be7 {[%emt 0:00:23]} 9. Be2 {[%emt 0:03:50]} d6 {[%emt 0:00:16]} 10. g4 {[%emt 0:15:18]} Nxd4 {[%emt 0:01:34]} 11. Rxd4 {[%emt 0:00:26]} b5 {[%emt 0:06:49]} 12. g5 {[%emt 0:01:48]} Nd7 {[%emt 0:00:37]} 13. Qg3 {[%emt 0:08:02]} Bb7 {[%emt 0:04:16]} 14. Rhd1 {[%emt 0:10:14]} Rc8 {[%emt 0:03:23]} 15. Kb1 {[%emt 0:00:27]} O-O {[%emt 0:32:00]} 16. f4 {[%emt 0:02:14]} Nc5 {[%emt 0:02:38]} 17. Bf3 {[%emt 0:15:59]} Na4 {[%emt 0:04:36]} 18. R1d3 {[%emt 0:00:18]} Nb6 {[%emt 0:02:44]} 19. Rd1 {[%emt 0:03:49]} Nc4 {[%emt 0:06:31]} 20. Bc1 {[%emt 0:00:23]} b4 {[%emt 0:07:31]} 21. Ne2 {[%emt 0:00:21]} e5 {[%emt 0:01:19]} 22. fxe5 {[%emt 0:05:46]} Nxe5 {[%emt 0:00:09]} 23. c3 {[%emt 0:00:09]} a5 {[%emt 0:01:22]} 24. Bd2 {[%emt 0:03:10]} Nc4 {[%emt 0:02:08]} 25. Rc1 {[%emt 0:06:08]} Qb6 {[%emt 0:01:06]} 26. cxb4 {[%emt 0:01:35]} Qxd4 {[%emt 0:00:23]} 0-1

[Event "94th FRA-ch 2019"]
[Site "Chartres"]
[Date "2019.08.18"]
[Round "2.2"]
[White "Fressinet, Laurent"]
[Black "Lagarde, Maxime"]
[Result "1-0"]
[ECO "D85"]
[WhiteElo "2625"]
[BlackElo "2626"]
[Annotator "ChessBase"]
[PlyCount "75"]
[EventDate "2019.08.17"]
[EventType "tourn"]
[EventCountry "FRA"]
[SourceTitle "playchess.com"]
[Source "ChessBase"]
[SourceQuality "1"]
[TimeControl "40/5400+30:1800+30"]

1. d4 {[%emt 0:00:00]} Nf6 {[%emt 0:00:00]} 2. Nf3 {[%emt 0:00:00]} g6 {[%emt 0:00:00]} 3. c4 {[%emt 0:00:00]} Bg7 {[%emt 0:00:00]} 4. Nc3 {[%emt 0:00:00]} d5 {[%emt 0:01:07]} 5. cxd5 {[%emt 0:00:14]} Nxd5 {[%emt 0:00:03]} 6. e4 {[%emt 0:00:06]} Nxc3 {[%emt 0:00:03]} 7. bxc3 {[%emt 0:00:05]} c5 {[%emt 0:00:02]} 8. Be3 {[%emt 0:00:10]} Qa5 {[%emt 0:00:09]} 9. Qd2 {[%emt 0:00:24]} O-O {[%emt 0:08:07]} 10. Rc1 {[%emt 0:00:31]} Bg4 {[%emt 0:02:42]} 11. Ng5 {[%emt 0:01:40]} Nc6 {[%emt 0:15:11]} 12. h3 {[%emt 0:06:36]} cxd4 {[%emt 0:01:59]} 13. cxd4 {[%emt 0:00:29]} Bd7 {[%emt 0:01:45]} 14. d5 {[%emt 0:20:59]} Qxd2+ {[%emt 0:18:51]} 15. Kxd2 {[%emt 0:04:59]} Na5 {[%emt 0:07:00]} 16. Bd3 {[%emt 0:02:20]} Rfd8 {[%emt 0:07:32]} 17. Bf4 {[%emt 0:20:38]} e5 {[%emt 0:10:39]} 18. Be3 {[%emt 0:06:52]} Bf8 {[%emt 0:07:42]} 19. f4 {[%emt 0:05:31]} exf4 {[%emt 0:12:40]} 20. Bxf4 {[%emt 0:00:12]} Rdc8 {[%emt 0:00:33]} 21. e5 {[%emt 0:04:16]} Ba3 {[%emt 0:00:38]} 22. Rxc8+ {[%emt 0:02:11]} Rxc8 {[%emt 0:00:01]} 23. Ne4 {[%emt 0:00:08]} Bf5 {[%emt 0:02:37]} 24. Nf6+ {[%emt 0:01:44]} Kg7 {[%emt 0:00:01]} 25. Nh5+ {[%emt 0:07:46]} gxh5 {[%emt 0:00:18]} 26. Bxf5 {[%emt 0:00:04]} Rc4 {[%emt 0:00:27]} 27. Be3 {[%emt 0:03:33]} Bc5 {[%emt 0:00:07]} 28. Bd3 {[%emt 0:01:37]} b6 {[%emt 0:00:04]} 29. Rf1 {[%emt 0:03:04]} Ra4 {[%emt 0:00:24]} 30. Bxc5 {[%emt 0:00:13]} bxc5 {[%emt 0:00:03]} 31. e6 {[%emt 0:00:50]} fxe6 {[%emt 0:00:03]} 32. dxe6 {[%emt 0:00:04]} Nc4+ {[%emt 0:00:23]} 33. Bxc4 {[%emt 0:02:22]} Rxc4 {[%emt 0:00:01]} 34. Rf7+ {[%emt 0:00:06]} Kg6 {[%emt 0:00:18]} 35. Rxa7 {[%emt 0:00:04]} h4 {[%emt 0:06:00]} 36. a4 {[%emt 0:01:09]} Kf6 {[%emt 0:00:00]} 37. e7 {[%emt 0:07:33]} Kf7 {[%emt 0:01:00]} 38. a5 {[%emt 0:00:00]} 1-0

[Event "94th FRA-ch 2019"]
[Site "Chartres"]
[Date "2019.08.18"]
[Round "2.3"]
[White "Moussard, Jules"]
[Black "Cornette, Matthieu"]
[Result "1/2-1/2"]
[ECO "A03"]
[WhiteElo "2595"]
[BlackElo "2555"]
[Annotator "ChessBase"]
[PlyCount "96"]
[EventDate "2019.08.17"]
[EventType "tourn"]
[EventCountry "FRA"]
[SourceTitle "playchess.com"]
[Source "ChessBase"]
[SourceQuality "1"]
[TimeControl "40/5400+30:1800+30"]

1. f4 {[%emt 0:00:00]} d5 {[%emt 0:06:13]} 2. Nf3 {[%emt 0:01:29]} Nf6 {[%emt 0:00:34]} 3. g3 {[%emt 0:00:08]} e6 {[%emt 0:01:04]} 4. Bg2 {[%emt 0:00:31]} Be7 {[%emt 0:00:39]} 5. O-O {[%emt 0:01:10]} b5 {[%emt 0:01:19]} 6. d3 {[%emt 0:04:04]} Bb7 {[%emt 0:01:06]} 7. a4 {[%emt 0:11:17]} b4 {[%emt 0:01:14]} 8. e4 {[%emt 0:01:45]} dxe4 {[%emt 0:01:46]} 9. Ng5 {[%emt 0:01:16]} Na6 {[%emt 0:19:30]} 10. Nxe4 {[%emt 0:04:47]} Bxe4 {[%emt 0:14:31]} 11. Bxe4 {[%emt 0:17:33]} Qd4+ {[%emt 0:00:26]} 12. Kg2 {[%emt 0:00:05]} Nxe4 {[%emt 0:00:04]} 13. Qf3 {[%emt 0:01:05]} Nac5 {[%emt 0:00:24]} 14. dxe4 {[%emt 0:19:12]} Qxe4 {[%emt 0:00:51]} 15. Nd2 {[%emt 0:01:38]} Qxf3+ {[%emt 0:12:09]} 16. Kxf3 {[%emt 0:00:11]} Rd8 {[%emt 0:06:13]} 17. Nc4 {[%emt 0:02:09]} Nb7 {[%emt 0:04:43]} 18. Be3 {[%emt 0:01:35]} a5 {[%emt 0:03:40]} 19. c3 {[%emt 0:03:18]} f6 {[%emt 0:01:26]} 20. Rac1 {[%emt 0:00:37]} Rd5 {[%emt 0:03:37]} 21. Rf2 {[%emt 0:02:12]} O-O {[%emt 0:02:07]} 22. Rfc2 {[%emt 0:02:33]} Rfd8 {[%emt 0:02:18]} 23. Nd2 {[%emt 0:04:20]} Nc5 {[%emt 0:12:01]} 24. Bxc5 {[%emt 0:04:21]} Bxc5 {[%emt 0:00:12]} 25. Nc4 {[%emt 0:00:03]} bxc3 {[%emt 0:01:41]} 26. bxc3 {[%emt 0:02:14]} Bf8 {[%emt 0:00:48]} 27. Rb1 {[%emt 0:02:05]} Rc5 {[%emt 0:00:16]} 28. Ne3 {[%emt 0:00:02]} Rd3 {[%emt 0:00:40]} 29. Rb3 {[%emt 0:00:03]} e5 {[%emt 0:01:57]} 30. Ke4 {[%emt 0:04:28]} Rd8 {[%emt 0:00:12]} 31. Rb5 {[%emt 0:00:38]} exf4 {[%emt 0:00:31]} 32. Rxc5 {[%emt 0:02:07]} Bxc5 {[%emt 0:00:04]} 33. Nc4 {[%emt 0:00:01]} fxg3 {[%emt 0:00:25]} 34. hxg3 {[%emt 0:00:02]} Rd1 {[%emt 0:01:42]} 35. Rb2 {[%emt 0:07:38]} Ra1 {[%emt 0:00:06]} 36. Rb8+ {[%emt 0:00:48]} Bf8 {[%emt 0:00:15]} 37. Rc8 {[%emt 0:00:30]} Rxa4 {[%emt 0:00:19]} 38. Rxc7 {[%emt 0:00:02]} Bd6 {[%emt 0:01:19]} 39. Rc8+ {[%emt 0:00:05]} Kf7 {[%emt 0:00:04]} 40. g4 {[%emt 0:00:01]} Be7 {[%emt 0:00:45]} 41. Rc7 {[%emt 0:06:05]} g6 {[%emt 0:08:44]} 42. Kd5 {[%emt 0:01:53]} Ra1 {[%emt 0:00:21]} 43. Ra7 {[%emt 0:02:23]} Rd1+ {[%emt 0:08:25]} 44. Ke4 {[%emt 0:00:22]} Re1+ {[%emt 0:01:55]} 45. Kd3 {[%emt 0:03:25]} h5 {[%emt 0:03:52]} 46. gxh5 {[%emt 0:00:22]} gxh5 {[%emt 0:00:14]} 47. Kd2 {[%emt 0:02:10]} Rh1 {[%emt 0:02:09]} 48. Ne3 {[%emt 0:00:21]} a4 {[%emt 0:09:09]} 1/2-1/2

[Event "94th FRA-ch 2019"]
[Site "Chartres"]
[Date "2019.08.18"]
[Round "2.4"]
[White "Gozzoli, Yannick"]
[Black "Feller, Sebastien"]
[Result "1/2-1/2"]
[ECO "D31"]
[WhiteElo "2614"]
[BlackElo "2577"]
[Annotator "ChessBase"]
[PlyCount "24"]
[EventDate "2019.08.17"]
[EventType "tourn"]
[EventCountry "FRA"]
[SourceTitle "playchess.com"]
[Source "ChessBase"]
[SourceQuality "1"]
[TimeControl "40/5400+30:1800+30"]

1. d4 {[%emt 0:00:00]} d5 {[%emt 0:00:00]} 2. c4 {[%emt 0:00:00]} e6 {[%emt 0:00:16]} 3. Nc3 {[%emt 0:00:09]} c6 {[%emt 0:01:36]} 4. Nf3 {[%emt 0:06:01]} dxc4 {[%emt 0:04:44]} 5. a4 {[%emt 0:02:31]} Bb4 {[%emt 0:00:28]} 6. g3 {[%emt 0:00:24]} c5 {[%emt 0:00:34]} 7. Be3 {[%emt 0:20:56]} Ne7 {[%emt 0:09:31]} 8. Bg2 {[%emt 0:18:24]} Nbc6 {[%emt 0:00:50]} 9. dxc5 {[%emt 0:04:42]} Qxd1+ {[%emt 0:01:29]} 10. Rxd1 {[%emt 0:02:24]} Nd5 {[%emt 0:00:10]} 11. Bd2 {[%emt 0:11:07]} Nxc3 {[%emt 0:00:38]} 12. Bxc3 {[%emt 0:00:08]} Bxc3+ {[%emt 1:15:44]} 1/2-1/2

[Event "94th FRA-ch 2019"]
[Site "Chartres"]
[Date "2019.08.18"]
[Round "2.5"]
[White "Gharamian, Tigran"]
[Black "Maze, Sebastien"]
[Result "1/2-1/2"]
[ECO "B40"]
[WhiteElo "2586"]
[BlackElo "2554"]
[Annotator "ChessBase"]
[PlyCount "35"]
[EventDate "2019.08.17"]
[EventType "tourn"]
[EventCountry "FRA"]
[SourceTitle "playchess.com"]
[Source "ChessBase"]
[SourceQuality "1"]
[TimeControl "40/5400+30:1800+30"]

1. e4 {[%emt 0:00:00]} c5 {[%emt 0:05:02]} 2. Nf3 {[%emt 0:00:16]} e6 {[%emt 0:00:03]} 3. g3 {[%emt 0:00:28]} Nc6 {[%emt 0:00:47]} 4. Bg2 {[%emt 0:00:18]} Nf6 {[%emt 0:00:35]} 5. Qe2 {[%emt 0:04:14]} e5 {[%emt 0:00:27]} 6. O-O {[%emt 0:00:07]} Be7 {[%emt 0:00:11]} 7. c3 {[%emt 0:01:20]} O-O {[%emt 0:00:36]} 8. Rd1 {[%emt 0:01:16]} d5 {[%emt 0:12:40]} 9. d4 {[%emt 0:39:47]} cxd4 {[%emt 0:35:01]} 10. exd5 {[%emt 0:02:19]} Qxd5 {[%emt 0:01:35]} 11. Nxd4 {[%emt 0:03:44]} e4 {[%emt 0:00:27]} 12. Nxc6 {[%emt 0:03:57]} Qxc6 {[%emt 0:00:15]} 13. h3 {[%emt 0:00:45]} Bf5 {[%emt 0:03:00]} 14. Be3 {[%emt 0:02:49]} Qe6 {[%emt 0:03:20]} 15. Kh2 {[%emt 0:10:58]} Nd5 {[%emt 0:11:01]} 16. Bd4 {[%emt 0:06:10]} Bg6 {[%emt 0:02:51]} 17. c4 {[%emt 0:07:52]} Nb4 {[%emt 0:02:44]} 18. Nc3 {[%emt 0:12:40]} 1/2-1/2

[Event "94th FRA-ch 2019"]
[Site "Chartres"]
[Date "2019.08.19"]
[Round "3.2"]
[White "Cornette, Matthieu"]
[Black "Gharamian, Tigran"]
[Result "1/2-1/2"]
[ECO "B96"]
[WhiteElo "2555"]
[BlackElo "2586"]
[Annotator "ChessBase"]
[PlyCount "89"]
[EventDate "2019.08.17"]
[EventType "tourn"]
[EventCountry "FRA"]
[SourceTitle "playchess.com"]
[Source "ChessBase"]
[SourceQuality "1"]
[TimeControl "40/5400+30:1800+30"]

1. e4 {[%emt 0:00:00]} c5 {[%emt 0:00:00]} 2. Nf3 {[%emt 0:00:22]} d6 {[%emt 0:00:00]} 3. d4 {[%emt 0:00:19]} cxd4 {[%emt 0:00:01]} 4. Nxd4 {[%emt 0:00:03]} Nf6 {[%emt 0:00:06]} 5. Nc3 {[%emt 0:00:03]} a6 {[%emt 0:00:06]} 6. Bg5 {[%emt 0:02:02]} e6 {[%emt 0:00:47]} 7. f4 {[%emt 0:02:25]} Qc7 {[%emt 0:00:28]} 8. Qe2 {[%emt 0:00:43]} Nc6 {[%emt 0:04:56]} 9. Bxf6 {[%emt 0:15:10]} gxf6 {[%emt 0:00:29]} 10. O-O-O {[%emt 0:04:03]} Nxd4 {[%emt 0:24:29]} 11. Rxd4 {[%emt 0:00:08]} Bd7 {[%emt 0:00:35]} 12. Kb1 {[%emt 0:18:47]} Qc5 {[%emt 0:11:01]} 13. Qd2 {[%emt 0:01:06]} Rg8 {[%emt 0:18:00]} 14. Nd1 {[%emt 0:09:58]} Bc6 {[%emt 0:18:12]} 15. Ne3 {[%emt 0:02:33]} Bg7 {[%emt 0:07:21]} 16. b4 {[%emt 0:07:22]} Qa7 {[%emt 0:00:48]} 17. Rxd6 {[%emt 0:05:02]} Ke7 {[%emt 0:02:57]} 18. Bc4 {[%emt 0:03:21]} Rgd8 {[%emt 0:03:33]} 19. Rd1 {[%emt 0:01:12]} Rxd6 {[%emt 0:02:01]} 20. Qxd6+ {[%emt 0:00:18]} Ke8 {[%emt 0:00:02]} 21. f5 {[%emt 0:12:36]} Bf8 {[%emt 0:00:23]} 22. Qg3 {[%emt 0:02:59]} b5 {[%emt 0:00:15]} 23. Bb3 {[%emt 0:00:40]} Qe7 {[%emt 0:00:57]} 24. fxe6 {[%emt 0:06:53]} fxe6 {[%emt 0:00:05]} 25. Qg4 {[%emt 0:01:03]} Bd7 {[%emt 0:00:25]} 26. a3 {[%emt 0:00:06]} Ra7 {[%emt 0:01:13]} 27. Qf4 {[%emt 0:01:43]} Bc8 {[%emt 0:00:39]} 28. Ng4 {[%emt 0:01:28]} Bg7 {[%emt 0:00:53]} 29. e5 {[%emt 0:00:19]} fxe5 {[%emt 0:01:25]} 30. Nxe5 {[%emt 0:00:51]} Qf6 {[%emt 0:00:40]} 31. Qxf6 {[%emt 0:00:24]} Bxf6 {[%emt 0:00:05]} 32. Re1 {[%emt 0:00:14]} Rg7 {[%emt 0:02:00]} 33. g3 {[%emt 0:00:28]} Ke7 {[%emt 0:00:07]} 34. Nd3 {[%emt 0:00:23]} Bg5 {[%emt 0:01:16]} 35. Re4 {[%emt 0:01:25]} Rf7 {[%emt 0:00:19]} 36. h4 {[%emt 0:00:56]} Rf1+ {[%emt 0:00:22]} 37. Re1 {[%emt 0:00:22]} Rxe1+ {[%emt 0:00:05]} 38. Nxe1 {[%emt 0:00:03]} Be3 {[%emt 0:00:19]} 39. Nd3 {[%emt 0:00:20]} Kd6 {[%emt 0:00:12]} 40. c4 {[%emt 0:00:18]} bxc4 {[%emt 0:00:33]} 41. Bxc4 {[%emt 0:30:09]} e5 {[%emt 0:30:51]} 42. Kc2 {[%emt 0:00:00]} e4 {[%emt 0:00:00]} 43. Nf4 {[%emt 0:00:00]} Ke5 {[%emt 0:00:00]} 44. Ne2 {[%emt 0:00:00]} Bb6 {[%emt 0:00:00]} 45. Kd2 {[%emt 0:00:00]} 1/2-1/2

[Event "94th FRA-ch 2019"]
[Site "Chartres"]
[Date "2019.08.20"]
[Round "4.4"]
[White "Moussard, Jules"]
[Black "Feller, Sebastien"]
[Result "1/2-1/2"]
[ECO "C95"]
[WhiteElo "2595"]
[BlackElo "2577"]
[Annotator "ChessBase"]
[PlyCount "96"]
[EventDate "2019.08.17"]
[EventType "tourn"]
[EventCountry "FRA"]
[SourceTitle "playchess.com"]
[Source "ChessBase"]
[SourceQuality "1"]
[TimeControl "40/5400+30:1800+30"]

1. e4 {[%emt 0:00:00]} e5 {[%emt 0:12:31]} 2. Nf3 {[%emt 0:00:00]} Nc6 {[%emt 0:00:19]} 3. Bb5 {[%emt 0:00:00]} a6 {[%emt 0:01:12]} 4. Ba4 {[%emt 0:00:00]} Nf6 {[%emt 0:00:35]} 5. O-O {[%emt 0:00:02]} Be7 {[%emt 0:00:51]} 6. Re1 {[%emt 0:00:06]} b5 {[%emt 0:00:14]} 7. Bb3 {[%emt 0:00:04]} d6 {[%emt 0:00:19]} 8. c3 {[%emt 0:00:06]} O-O {[%emt 0:00:06]} 9. h3 {[%emt 0:00:01]} Nb8 {[%emt 0:12:05]} 10. d4 {[%emt 0:00:16]} Nbd7 {[%emt 0:00:06]} 11. Nbd2 {[%emt 0:00:06]} Bb7 {[%emt 0:00:08]} 12. Bc2 {[%emt 0:00:13]} Re8 {[%emt 0:00:04]} 13. Nf1 {[%emt 0:00:06]} Bf8 {[%emt 0:00:04]} 14. Ng3 {[%emt 0:00:06]} g6 {[%emt 0:00:47]} 15. a4 {[%emt 0:00:08]} c5 {[%emt 0:03:41]} 16. d5 {[%emt 0:00:07]} c4 {[%emt 0:00:13]} 17. Bg5 {[%emt 0:00:14]} Bg7 {[%emt 0:08:02]} 18. Qd2 {[%emt 0:03:42]} Nc5 {[%emt 0:36:16]} 19. Nh4 {[%emt 0:17:16]} Qe7 {[%emt 0:13:21]} 20. Re2 {[%emt 0:32:43]} Qf8 {[%emt 0:01:07]} 21. Rf1 {[%emt 0:00:22]} Nfd7 {[%emt 0:01:31]} 22. Ngf5 {[%emt 0:10:23]} gxf5 {[%emt 0:01:31]} 23. Nxf5 {[%emt 0:00:04]} Bc8 {[%emt 0:05:39]} 24. f4 {[%emt 0:01:59]} exf4 {[%emt 0:00:15]} 25. Qxf4 {[%emt 0:00:35]} f6 {[%emt 0:00:21]} 26. Bh4 {[%emt 0:03:49]} Re5 {[%emt 0:00:01]} 27. g4 {[%emt 0:07:56]} Rxf5 {[%emt 0:00:41]} 28. gxf5 {[%emt 0:00:06]} Ne5 {[%emt 0:01:06]} 29. Rg2 {[%emt 0:00:12]} Ra7 {[%emt 0:00:37]} 30. Kh1 {[%emt 0:00:08]} Kh8 {[%emt 0:00:37]} 31. Rfg1 {[%emt 0:00:04]} Rf7 {[%emt 0:00:22]} 32. axb5 {[%emt 0:04:09]} axb5 {[%emt 0:00:02]} 33. Ra1 {[%emt 0:01:03]} Bb7 {[%emt 0:00:04]} 34. Ra5 {[%emt 0:00:24]} Bh6 {[%emt 0:00:26]} 35. Qf1 {[%emt 0:00:52]} Qe8 {[%emt 0:00:47]} 36. Qe2 {[%emt 0:01:28]} Rf8 {[%emt 0:00:54]} 37. Ra7 {[%emt 0:05:32]} Bg7 {[%emt 0:00:03]} 38. Bd1 {[%emt 0:01:17]} Qb8 {[%emt 0:00:39]} 39. Ra5 {[%emt 0:00:08]} Qe8 {[%emt 0:00:24]} 40. Ra7 {[%emt 0:00:08]} Qe7 {[%emt 0:00:52]} 41. Bc2 {[%emt 0:33:26]} Ra8 {[%emt 0:23:16]} 42. Rxa8+ {[%emt 0:00:00]} Bxa8 {[%emt 0:08:51]} 43. Bf2 {[%emt 0:00:00]} Ned3 {[%emt 0:00:00]} 44. Bxc5 {[%emt 0:00:00]} Nxc5 {[%emt 0:00:00]} 45. Qg4 {[%emt 0:00:00]} Bb7 {[%emt 0:00:00]} 46. Rg1 {[%emt 0:00:00]} Qf8 {[%emt 0:00:00]} 47. h4 {[%emt 0:00:00]} Bh6 {[%emt 0:00:00]} 48. Qg3 {[%emt 0:00:00]} Bg7 {[%emt 0:00:00]} 1/2-1/2

[Event "94th FRA-ch 2019"]
[Site "Chartres"]
[Date "2019.08.20"]
[Round "4.5"]
[White "Favarel, Julien"]
[Black "Maze, Sebastien"]
[Result "0-1"]
[ECO "B41"]
[WhiteElo "2333"]
[BlackElo "2554"]
[Annotator "ChessBase"]
[PlyCount "100"]
[EventDate "2019.08.17"]
[EventType "tourn"]
[EventCountry "FRA"]
[SourceTitle "playchess.com"]
[Source "ChessBase"]
[SourceQuality "1"]
[TimeControl "40/5400+30:1800+30"]

1. e4 {[%emt 0:00:00]} c5 {[%emt 0:00:00]} 2. Nf3 {[%emt 0:00:00]} e6 {[%emt 0:00:00]} 3. d4 {[%emt 0:00:00]} cxd4 {[%emt 0:00:00]} 4. Nxd4 {[%emt 0:00:00]} a6 {[%emt 0:00:00]} 5. c4 {[%emt 0:00:27]} Nf6 {[%emt 0:00:00]} 6. Nc3 {[%emt 0:00:12]} Bb4 {[%emt 0:00:00]} 7. Qd3 {[%emt 0:00:47]} O-O {[%emt 0:00:09]} 8. e5 {[%emt 0:00:44]} Ne8 {[%emt 0:00:06]} 9. a3 {[%emt 0:04:27]} Bxc3+ {[%emt 0:05:50]} 10. Qxc3 {[%emt 0:00:42]} d6 {[%emt 0:00:04]} 11. exd6 {[%emt 0:06:50]} e5 {[%emt 0:02:12]} 12. Nc2 {[%emt 0:03:24]} Nxd6 {[%emt 0:02:15]} 13. Be2 {[%emt 0:04:44]} Nc6 {[%emt 0:00:51]} 14. O-O {[%emt 0:00:48]} Bf5 {[%emt 0:00:20]} 15. Bd3 {[%emt 0:11:25]} Ne4 {[%emt 0:13:34]} 16. Bxe4 {[%emt 0:00:38]} Bxe4 {[%emt 0:00:02]} 17. Be3 {[%emt 0:02:06]} Qd3 {[%emt 0:02:29]} 18. Nb4 {[%emt 0:08:18]} Qxc3 {[%emt 0:00:07]} 19. bxc3 {[%emt 0:00:03]} Na5 {[%emt 0:00:06]} 20. Rfe1 {[%emt 0:02:38]} Nxc4 {[%emt 0:11:22]} 21. Bc5 {[%emt 0:04:35]} Rfc8 {[%emt 0:00:07]} 22. Rxe4 {[%emt 0:00:05]} Rxc5 {[%emt 0:00:02]} 23. Nd3 {[%emt 0:00:26]} Rc7 {[%emt 0:00:14]} 24. Nxe5 {[%emt 0:00:20]} Nxe5 {[%emt 0:00:38]} 25. Rxe5 {[%emt 0:00:01]} Rxc3 {[%emt 0:00:06]} 26. g3 {[%emt 0:03:06]} Rac8 {[%emt 0:01:45]} 27. Kg2 {[%emt 0:00:52]} f6 {[%emt 0:00:38]} 28. Re7 {[%emt 0:01:46]} R8c7 {[%emt 0:00:09]} 29. Rxc7 {[%emt 0:07:33]} Rxc7 {[%emt 0:01:29]} 30. a4 {[%emt 0:00:12]} Kf7 {[%emt 0:02:22]} 31. Rb1 {[%emt 0:01:51]} Ke7 {[%emt 0:00:48]} 32. h4 {[%emt 0:00:59]} Kd7 {[%emt 0:00:26]} 33. h5 {[%emt 0:01:30]} Kc8 {[%emt 0:01:21]} 34. Rb4 {[%emt 0:00:27]} Rc5 {[%emt 0:01:12]} 35. h6 {[%emt 0:05:41]} gxh6 {[%emt 0:00:06]} 36. Rh4 {[%emt 0:00:22]} Ra5 {[%emt 0:15:03]} 37. Rxh6 {[%emt 0:01:16]} Rxa4 {[%emt 0:00:04]} 38. Rxf6 {[%emt 0:01:21]} Rd4 {[%emt 0:00:08]} 39. f4 {[%emt 0:01:15]} a5 {[%emt 0:00:21]} 40. Rh6 {[%emt 0:01:19]} Rd7 {[%emt 0:00:57]} 41. f5 {[%emt 0:30:35]} a4 {[%emt 0:36:13]} 42. Rh4 {[%emt 0:08:12]} b5 {[%emt 0:01:43]} 43. Rb4 {[%emt 0:00:04]} Rb7 {[%emt 0:00:53]} 44. f6 {[%emt 0:01:32]} Kd8 {[%emt 0:00:15]} 45. Rg4 {[%emt 0:00:42]} Rf7 {[%emt 0:02:30]} 46. Rb4 {[%emt 0:00:21]} Rxf6 {[%emt 0:00:23]} 47. Rxb5 {[%emt 0:00:02]} Ra6 {[%emt 0:00:06]} 48. Kf3 {[%emt 0:02:24]} a3 {[%emt 0:00:05]} 49. Rb1 {[%emt 0:00:13]} a2 {[%emt 0:00:04]} 50. Ra1 {[%emt 0:00:03]} Ke7 {[%emt 0:00:12]} 0-1